fUSD/lending_fUSD_20250804
["ID","MTS","AMOUNT","RATE_DAILY","PERIOD"]
[377303707,1754326264145,-2604.14,0.00054794,120]
[377303708,1754326264156,-696.64,0.00054794,120]
[377303709,1754326264166,-902.04,0.00054794,120]
[377303710,1754326264175,-400.0,0.00054794,120]
[377303711,1754326264185,-1681.02,0.00054794,120]
[377303712,1754326264196,-400.0,0.00054794,120]
[377303713,1754326264207,-151.0,0.00054794,120]
[377303714,1754326264217,-2030.64,0.00054794,120]
[377303715,1754326264227,-466.94459235,0.00054794,120]
[377303716,1754326264237,-400.0,0.00054794,120]
[377303717,1754326264250,-475.62,0.00054794,120]
[377303718,1754326264261,-400.0,0.00054794,120]
[377303719,1754326264271,-793.55,0.00054794,120]
[377303720,1754326264281,-151.0,0.00054794,120]
[377303721,1754326264290,-151.0,0.00054794,120]
[377303722,1754326264300,-151.0,0.00054794,120]
[377303723,1754326264310,-400.0,0.00054794,120]
[377303724,1754326264320,-400.0,0.00054794,120]
[377303725,1754326264330,-151.0,0.00054794,120]
[377303726,1754326264340,-3964.95,0.00054794,120]
[377303727,1754326264350,-400.0,0.00054794,120]
[377303728,1754326264668,-1377.96,0.00054794,120]
[377303729,1754326264679,-4226.94,0.00054794,120]
[377303730,1754326264688,-2502.05,0.00054794,120]
[377303731,1754326264699,-435.18,0.00054794,120]
[377303732,1754326264708,-151.0,0.00054794,120]
[377303733,1754326264717,-200.0,0.00054794,120]
[377303734,1754326264727,-500.0,0.00054794,120]
[377303735,1754326264738,-151.0,0.00054794,120]
[377303736,1754326264748,-151.0,0.00054794,120]
[377303737,1754326264759,-500.0,0.00054794,120]
[377303738,1754326264768,-1442.26,0.00054794,120]
[377303739,1754326264778,-400.0,0.00054794,120]
[377303740,1754326264787,-500.0,0.00054794,120]
[377303741,1754326264796,-2543.77,0.00054794,120]
[377303742,1754326264807,-500.0,0.00054794,120]
[377303743,1754326264816,-871.96,0.00054794,120]
[377303744,1754326264827,-400.0,0.00054794,120]
[377303745,1754326264838,-400.0,0.00054794,120]
[377303746,1754326264847,-980.41,0.00054794,120]
[377303747,1754326264857,-500.0,0.00054794,120]
[377303748,1754326264867,-2582.99,0.00054794,120]
[377303749,1754326264877,-400.0,0.00054794,120]
[377303750,1754326264888,-545.25,0.00054794,120]
[377303751,1754326264899,-3165.68,0.00054794,120]
[377303752,1754326264910,-150.0,0.00054794,120]
[377303753,1754326264920,-400.0,0.00054794,120]
[377303754,1754326264932,-2231.99,0.00054794,120]
[377303755,1754326264942,-1008.35,0.00054794,120]
[377303756,1754326264952,-151.0,0.00054794,120]
[377303757,1754326264962,-1160.63,0.00054794,120]
[377303758,1754326264972,-400.0,0.00054794,120]
[377303759,1754326264983,-5559.12,0.00054794,120]
[377303760,1754326264992,-151.0,0.00054794,120]
[377303761,1754326265003,-151.0,0.00054794,120]
[377303762,1754326265013,-500.0,0.00054794,120]
[377303763,1754326265023,-151.0,0.00054794,120]
[377303764,1754326265033,-400.0,0.00054794,120]
[377303765,1754326265043,-151.0,0.00054794,120]
[377303766,1754326265053,-7550.4,0.00054794,120]
[377303767,1754326265063,-151.0,0.00054794,120]
[377303768,1754326265079,-400.0,0.00054794,120]
[377303769,1754326265089,-400.0,0.00054794,7]
[377303770,1754326265100,-4302.91,0.00054794,120]
[377303771,1754326265110,-602.67,0.00054794,120]
[377303772,1754326265123,-150.0,0.00054794,120]
[377303773,1754326265136,-616.69,0.00054794,120]
[377303774,1754326265146,-400.0,0.00054794,120]
[377303775,1754326265157,-937.71,0.00054794,120]
[377303776,1754326265167,-2095.15,0.00054794,120]
[377303777,1754326265176,-400.0,0.00054794,120]
[377303778,1754326265189,-8710.47,0.00054794,120]
[377303779,1754326265199,-2871.9,0.00054794,120]
[377303780,1754326265210,-400.0,0.00054794,120]
[377303781,1754326265221,-150.0,0.00054794,120]
[377303782,1754326265233,-400.0,0.00054794,120]
[377303783,1754326265243,-14934.09,0.00054794,120]
[377303784,1754326265255,-8253.94,0.00054794,120]
[377303785,1754326265265,-156.80895068,0.00054794,120]
[377303786,1754326265275,-407.46625575,0.00054794,120]
[377303787,1754326265285,-206.15836281,0.00054794,120]
[377303788,1754326265295,-2676.45,0.00054794,120]
[377303789,1754326265305,-4121.78,0.00054794,120]
[377303790,1754326265314,-400.0,0.00054794,120]
[377303791,1754326265325,-500.0,0.00054794,120]
[377303792,1754326265335,-1564.04,0.00054794,120]
[377303793,1754326265345,-1619.95,0.00054794,120]
[377303794,1754326265354,-1217.71,0.00054794,120]
[377303795,1754326265363,-400.0,0.00054794,120]
[377303796,1754326265373,-597.7,0.00054794,120]
[377303797,1754326265382,-400.0,0.00054794,120]
[377303798,1754326265391,-1427.0,0.00054794,120]
[377303799,1754326265402,-151.0,0.00054794,120]
[377303800,1754326265412,-151.0,0.00054794,120]
[377303801,1754326265421,-151.0,0.00054794,120]
[377303802,1754326265431,-583.18,0.00054794,120]
[377303803,1754326265441,-400.0,0.00054794,120]
[377303804,1754326265451,-500.0,0.00054794,120]
[377303805,1754326265461,-400.0,0.00054794,120]
[377303806,1754326265470,-467.35,0.00054794,120]
[377303807,1754326265480,-1417.33,0.00054794,120]
[377303808,1754326265489,-6359.65,0.00054794,120]
[377303809,1754326265500,-2292.11,0.00054794,120]
[377303810,1754326265510,-3013.05,0.00054794,120]
[377303811,1754326265520,-2354.46,0.00054794,120]
[377303812,1754326265529,-2254.5,0.00054794,120]
[377303813,1754326265539,-464.02199871,0.00054794,120]
[377303814,1754326265552,-400.0,0.00054794,120]
[377303815,1754326265562,-300.0,0.00054794,30]
[377303816,1754326265578,-500.0,0.00054794,120]
[377303817,1754326265587,-400.0,0.00054794,120]
[377303818,1754326265597,-1308.41,0.00054794,120]
[377303819,1754326265607,-400.0,0.00054794,120]
[377303820,1754326265617,-402.86,0.00054794,120]
[377303821,1754326265626,-400.0,0.00054794,120]
[377303822,1754326265636,-150.0,0.00054794,2]
[377303823,1754326265646,-3653.55,0.00054794,120]
[377303824,1754326265655,-6140.75,0.00054794,120]
[377303825,1754326265665,-1632.77,0.00054794,120]
[377303826,1754326265675,-492.02,0.00054794,120]
[377303827,1754326265685,-400.0,0.00054794,120]
[377303828,1754326265694,-500.0,0.00054794,120]
[377303829,1754326265705,-400.0,0.00054794,120]
[377303830,1754326265715,-400.0,0.00054794,120]
[377303831,1754326265725,-400.0,0.00054794,120]
[377303832,1754326265735,-6075.52,0.00054794,120]
[377303833,1754326265746,-150.0,0.00054794,2]
[377303834,1754326265757,-575.5,0.00054794,120]
[377303835,1754326265767,-400.0,0.00054794,120]
[377303836,1754326265776,-8021.36,0.00054794,120]
[377303837,1754326265786,-4092.73,0.00054794,120]
[377303838,1754326265796,-500.0,0.00054794,120]
[377303839,1754326265805,-400.0,0.00054794,120]
[377303840,1754326265816,-151.0,0.00054794,120]
[377303841,1754326265827,-11240.02,0.00054794,120]
[377303842,1754326265838,-1511.14,0.00054794,120]
[377303843,1754326265848,-151.0,0.00054794,120]
[377303844,1754326265859,-151.0,0.00054794,120]
[377303845,1754326265868,-496.66,0.00054794,120]
[377303846,1754326265878,-1083.4,0.00054794,120]
[377303847,1754326265889,-1350.58,0.00054794,120]
[377303848,1754326265900,-1458.93,0.00054794,120]
[377303849,1754326265911,-400.0,0.00054794,120]
[377303850,1754326265921,-400.0,0.00054794,120]
[377303851,1754326265931,-3838.16,0.00054794,120]
[377303852,1754326265941,-1313.93,0.00054794,120]
[377303853,1754326265951,-400.0,0.00054794,120]
[377303854,1754326265961,-1927.14,0.00054794,120]
[377303855,1754326265970,-2339.54,0.00054794,120]
[377303856,1754326265981,-505.21,0.00054794,120]
[377303857,1754326265991,-3297.3,0.00054794,120]
[377303858,1754326266000,-783.96,0.00054794,120]
[377303859,1754326266010,-1437.83,0.00054794,120]
[377303860,1754326266024,-400.0,0.00054794,120]
[377303861,1754326266034,-1830.91,0.00054794,120]
[377303862,1754326266044,-6315.17,0.00054794,120]
[377303863,1754326266055,-4067.87,0.00054794,120]
[377303864,1754326266066,-1089.5,0.00054794,120]
[377303865,1754326266075,-400.0,0.00054794,120]
[377303866,1754326266085,-2834.41,0.00054794,120]
[377303867,1754326266095,-400.0,0.00054794,120]
[377303868,1754326266106,-2010.15,0.00054794,120]
[377303869,1754326266120,-1069.39,0.00054794,120]
[377303870,1754326266131,-400.0,0.00054794,120]
[377303871,1754326266141,-703.48,0.00054794,120]
[377303872,1754326266152,-458.30159946,0.00054794,120]
[377303873,1754326266163,-426.52,0.00054794,120]
[377303874,1754326266172,-400.0,0.00054794,120]
[377303875,1754326266182,-758.14,0.00054794,120]
[377303876,1754326266193,-2827.5,0.00054794,120]
[377303877,1754326266203,-3119.8,0.00054794,120]
[377303878,1754326266214,-400.0,0.00054794,120]
[377303879,1754326266224,-400.0,0.00054794,120]
[377303880,1754326266234,-4647.96,0.00054794,120]
[377303881,1754326266246,-400.0,0.00054794,120]
[377303882,1754326266257,-1130.0,0.00054794,120]
[377303883,1754326266266,-472.08,0.00054794,120]
[377303884,1754326266279,-400.0,0.00054794,120]
[377303885,1754326266289,-3757.88,0.00054794,120]
[377303886,1754326266300,-3142.77,0.00054794,120]
[377303887,1754326266309,-1414.29,0.00054794,120]
[377303888,1754326266319,-477.49,0.00054794,120]
[377303889,1754326266329,-400.0,0.00054794,120]
[377303890,1754326266340,-1282.31,0.00054794,120]
[377303891,1754326266350,-400.0,0.00054794,120]
[377303892,1754326266360,-586.18,0.00054794,120]
[377303893,1754326266371,-407.17,0.00054794,120]
[377303894,1754326266382,-400.0,0.00054794,120]
[377303895,1754326266393,-5926.39,0.00054794,120]
[377303896,1754326266402,-2182.99,0.00054794,120]
[377303897,1754326266411,-2902.81,0.00054794,120]
[377303898,1754326266421,-400.0,0.00054794,120]
[377303899,1754326266431,-6094.53,0.00054794,120]
[377303900,1754326266441,-450.84,0.00054794,120]
[377303901,1754326266452,-1456.14,0.00054794,120]
[377303902,1754326266463,-10791.43,0.00054794,120]
[377303903,1754326266479,-400.0,0.00054794,120]
[377303904,1754326266496,-3224.31,0.00054794,120]
[377303905,1754326266515,-400.0,0.00054794,120]
[377303906,1754326266536,-400.0,0.00054794,120]
[377303907,1754326266548,-3385.01,0.00054794,120]
[377303908,1754326266560,-442.32,0.00054794,120]
[377303909,1754326266574,-400.0,0.00054794,120]
[377303910,1754326266584,-1561.06,0.00054794,120]
[377303911,1754326266594,-2231.38,0.00054794,120]
[377303912,1754326266605,-1863.37,0.00054794,120]
[377303913,1754326266616,-400.0,0.00054794,120]
[377303914,1754326266625,-521.9822565,0.00054794,120]
[377303915,1754326266635,-2171.67,0.00054794,120]
[377303916,1754326266646,-400.0,0.00054794,120]
[377303917,1754326266656,-400.0,0.00054794,120]
[377303918,1754326266666,-400.0,0.00054794,120]
[377303919,1754326266676,-1446.6,0.00054794,120]
[377303920,1754326266686,-400.0,0.00054794,120]
[377303921,1754326266696,-400.0,0.00054794,120]
[377303922,1754326266705,-3783.37,0.00054794,120]
[377303923,1754326266715,-504.89,0.00054794,120]
[377303924,1754326266725,-2463.64,0.00054794,120]
[377303925,1754326266735,-400.0,0.00054794,120]
[377303926,1754326266745,-2284.53,0.00054794,120]
[377303927,1754326266755,-400.0,0.00054794,120]
[377303928,1754326266765,-402.96371968,0.00054794,120]
[377303929,1754326266775,-2040.66,0.00054794,120]
[377303930,1754326266785,-153.05201341,0.00054794,120]
[377303931,1754326266795,-400.0,0.00054794,120]
[377303932,1754326266805,-3243.87,0.00054794,120]
[377303933,1754326266816,-400.0,0.00054794,120]
[377303934,1754326266827,-400.0,0.00054794,120]
[377303935,1754326266837,-400.0,0.00054794,120]
[377303936,1754326266847,-986.74,0.00054794,120]
[377303937,1754326266858,-202.22968361,0.00054794,120]
[377303938,1754326266867,-6450.36,0.00054794,120]
[377303939,1754326266877,-400.0,0.00054794,120]
[377303940,1754326266887,-7185.74,0.00054794,120]
[377303941,1754326266897,-3157.59,0.00054794,120]
[377303942,1754326266907,-1224.69,0.00054794,120]
[377303943,1754326266919,-4664.45,0.00054794,120]
[377303944,1754326266931,-1259.75,0.00054794,60]
[377303945,1754326266942,-2623.03,0.00054794,120]
[377303946,1754326266952,-350.27321088,0.00054794,120]
[377303947,1754326266962,-400.0,0.00054794,120]
[377303948,1754326266971,-3019.54,0.00054794,120]
[377303949,1754326266981,-806.8,0.00054794,120]
[377303950,1754326266991,-673.27,0.00054794,120]
[377303951,1754326267001,-2110.0,0.00054794,30]
[377303952,1754326267012,-400.0,0.00054794,120]
[377303953,1754326267022,-400.0,0.00054794,120]
[377303954,1754326267032,-864.94,0.00054794,120]
[377303955,1754326267041,-400.0,0.00054794,120]
[377303956,1754326267051,-1900.34,0.00054794,120]
[377303957,1754326267061,-10035.07,0.00054794,120]
[377303958,1754326267071,-3305.69,0.00054794,120]
[377303959,1754326267081,-2703.18,0.00054794,120]
[377303960,1754326267091,-952.24,0.00054794,120]
[377303961,1754326267100,-4257.56,0.00054794,120]
[377303962,1754326267110,-1893.29,0.00054794,120]
[377303963,1754326267123,-400.0,0.00054794,120]
[377303964,1754326267134,-1425.9,0.00054794,120]
[377303965,1754326267144,-400.0,0.00054794,120]
[377303966,1754326267155,-1637.01,0.00054794,120]
[377303967,1754326267165,-813.6,0.00054794,120]
[377303968,1754326267175,-1368.9,0.00054794,120]
[377303969,1754326267185,-719.56,0.00054794,120]
[377303970,1754326267196,-400.0,0.00054794,120]
[377303971,1754326267209,-400.0,0.00054794,120]
[377303972,1754326267219,-1307.08,0.00054794,120]
[377303973,1754326267230,-2055.19,0.00054794,120]
[377303974,1754326267240,-400.0,0.00054794,120]
[377303975,1754326267250,-1119.56,0.00054794,120]
[377303976,1754326267260,-8774.9,0.00054794,120]
[377303977,1754326267271,-6394.64,0.00054794,120]
[377303978,1754326267282,-400.0,0.00054794,120]
[377303979,1754326267293,-400.0,0.00054794,120]
[377303980,1754326267304,-1066.46,0.00054794,120]
[377303981,1754326267314,-4001.05,0.00054794,120]
[377303982,1754326267324,-742.36,0.00054794,120]
[377303983,1754326267334,-400.0,0.00054794,120]
[377303984,1754326267345,-423.40568344,0.00054794,120]
[377303985,1754326267355,-1954.33,0.00054794,120]
[377303986,1754326267365,-2627.95,0.00054794,120]
[377303987,1754326267375,-2467.06,0.00054794,120]
[377303988,1754326267385,-400.0,0.00054794,120]
[377303989,1754326267394,-389.18808264,0.00054794,120]
[377303990,1754326267404,-478.73,0.00054794,120]
[377303991,1754326267414,-4248.77,0.00054794,120]
[377303992,1754326267423,-2642.1,0.00054794,120]
[377303993,1754326267433,-708.75,0.00054794,120]
[377303994,1754326267442,-1825.7,0.00054794,120]
[377303995,1754326267452,-151.0,0.00054794,120]
[377303996,1754326267461,-400.0,0.00054794,120]
[377303997,1754326267471,-400.0,0.00054794,120]
[377303998,1754326267481,-247.332141,0.00054794,120]
[377303999,1754326267491,-7223.75,0.00054794,120]
[377304000,1754326267500,-219.16946043,0.00054794,120]
[377304001,1754326267512,-8540.48,0.00054794,120]
[377304002,1754326267522,-400.0,0.00054794,120]
[377304003,1754326267531,-905.57,0.00054794,120]
[377304004,1754326267541,-4315.41,0.00054794,120]
[377304005,1754326267551,-2367.34,0.00054794,120]
[377304006,1754326267560,-1155.15,0.00054794,120]
[377304007,1754326267569,-400.0,0.00054794,120]
[377304008,1754326267579,-400.0,0.00054794,120]
[377304009,1754326267589,-400.0,0.00054794,120]
[377304010,1754326267599,-3168.28,0.00054794,120]
[377304011,1754326267608,-3602.18,0.00054794,120]
[377304012,1754326267618,-400.0,0.00054794,120]
[377304013,1754326267627,-3314.01,0.00054794,120]
[377304014,1754326267637,-626.39,0.00054794,120]
[377304015,1754326267646,-516.77,0.00054794,120]
[377304016,1754326267656,-3179.29,0.00054794,120]
[377304017,1754326267665,-594.81,0.00054794,120]
[377304018,1754326267675,-1465.03,0.00054794,120]
[377304019,1754326267685,-400.0,0.00054794,120]
[377304020,1754326267694,-400.0,0.00054794,120]
[377304021,1754326267705,-980.45,0.00054794,120]
[377304022,1754326267716,-2575.99,0.00054794,120]
[377304023,1754326267726,-2575.99,0.00054794,120]
[377304024,1754326267738,-2575.99,0.00054794,120]
[377304025,1754326267751,-2575.99,0.00054794,120]
[377304026,1754326267761,-2575.99,0.00054794,120]
[377304027,1754326267771,-2575.99,0.00054794,120]
[377304028,1754326267780,-2575.99,0.00054794,120]
[377304029,1754326267790,-1450.99,0.00054794,120]
[377304030,1754326267800,-2575.99,0.00054794,120]
[377304031,1754326267809,-2575.99,0.00054794,120]
[377304032,1754326267819,-2575.99,0.00054794,120]
[377304033,1754326267828,-873.96,0.00054794,120]
[377304034,1754326267838,-400.0,0.00054794,120]
[377304035,1754326267847,-685.44,0.00054794,120]
[377304036,1754326267857,-2674.65,0.00054794,120]
[377304037,1754326267867,-2575.99,0.00054794,120]
[377304038,1754326267877,-2008.64,0.00054794,120]
[377304039,1754326267886,-2575.99,0.00054794,120]
[377304040,1754326267896,-1810.83,0.00054794,120]
[377304041,1754326267905,-1318.53,0.00054794,120]
[377304042,1754326267915,-2575.99,0.00054794,120]
[377304043,1754326267925,-2575.99,0.00054794,120]
[377304044,1754326267934,-2575.99,0.00054794,120]
[377304045,1754326267944,-2575.99,0.00054794,120]
[377304046,1754326267954,-2575.99,0.00054794,120]
[377304047,1754326267964,-2575.99,0.00054794,120]
[377304048,1754326267973,-938.97,0.00054794,120]
[377304049,1754326267983,-2575.99,0.00054794,120]
[377304050,1754326267993,-2575.99,0.00054794,120]
[377304051,1754326268003,-2575.99,0.00054794,120]
[377304052,1754326268013,-2575.99,0.00054794,120]
[377304053,1754326268023,-2575.99,0.00054794,120]
[377304054,1754326268032,-2576.00186271,0.00054794,120]
[377304055,1754326268041,-823.6,0.00054794,120]
[377304056,1754326268051,-864.0,0.00054794,120]
[377304057,1754326268060,-286.12996579,0.00054794,120]
[377304058,1754326268070,-1070.76,0.00054794,120]
[377304059,1754326268079,-1777.84,0.00054794,120]
[377304060,1754326268088,-2459.37,0.00054794,120]
[377304061,1754326268098,-400.0,0.00054794,120]
[377304062,1754326268107,-400.0,0.00054794,120]
[377304063,1754326268120,-151.0,0.00054794,120]
[377304064,1754326268129,-151.0,0.00054794,120]
[377304065,1754326268139,-7517.1,0.00054794,120]
[377304066,1754326268149,-400.0,0.00054794,120]
[377304067,1754326268158,-151.0,0.00054794,120]
[377304068,1754326268168,-400.0,0.00054794,120]
[377304069,1754326268177,-500.0,0.00054794,2]
[377304070,1754326268188,-2959.5,0.00054794,120]
[377304071,1754326268198,-400.0,0.00054794,120]
[377304072,1754326268207,-923.54924478,0.00054794,120]
[377304073,1754326269657,-888.0,0.00047093,3]
[377304074,1754326269667,-888.0,0.00048202,3]
[377304075,1754326269679,-281.194,0.0004911,2]
[377304076,1754326269689,-181.909,0.0004911,2]
[377304077,1754326269698,-150.0,0.0004911,2]
[377304078,1754326269708,-1485.66903561,0.00049333,3]
[377304079,1754326270842,-290.33096439,0.00049333,3]
[377304080,1754326270852,-117.23717461,0.000498,120]
[377304081,1754326270872,-770.76282539,0.000498,120]
[377304082,1754326270882,-768.21738281,0.00050442,3]
[377304083,1754326271058,-79.95121278,0.00050442,3]
[377304084,1754326271070,-927.83140441,0.00050442,3]
[377304085,1754326271082,-1776.0,0.0005204,120]
[377304086,1754326271092,-150.0,0.0005211,2]
[377304087,1754326271102,-1306.08075522,0.00054794,120]
[377304088,1754326271112,-407.35093766,0.00054794,10]
[377304089,1754326271125,-500.0,0.00054794,120]
[377304090,1754326271135,-3420.35,0.00054794,120]
[377304091,1754326271145,-2608.29,0.00054794,120]
[377304092,1754326271155,-5066.82,0.00054794,120]
[377304093,1754326271165,-151.0,0.00054794,120]
[377304094,1754326271174,-2553.0,0.00054794,120]
[377304095,1754326271184,-151.0,0.00054794,120]
[377304096,1754326271195,-400.0,0.00054794,120]
[377304097,1754326271205,-4888.73,0.00054794,120]
[377304098,1754326271215,-151.0,0.00054794,120]
[377304099,1754326271224,-400.0,0.00054794,120]
[377304100,1754326271234,-1408.18,0.00054794,120]
[377304101,1754326271244,-12132.56,0.00054794,118]
[377304102,1754326271256,-400.0,0.00054794,120]
[377304103,1754326271266,-500.0,0.00054794,120]
[377304104,1754326271276,-400.0,0.00054794,120]
[377304105,1754326271286,-400.0,0.00054794,120]
[377304106,1754326271295,-400.0,0.00054794,120]
[377304107,1754326271305,-5086.54,0.00054794,120]
[377304108,1754326271314,-862.95,0.00054794,120]
[377304109,1754326271324,-150.0,0.00054794,120]
[377304110,1754326271333,-500.0,0.00054794,120]
[377304111,1754326271343,-3959.56,0.00054794,120]
[377304112,1754326271353,-7126.0,0.00054794,120]
[377304113,1754326271362,-400.0,0.00054794,120]
[377304114,1754326271372,-400.0,0.00054794,120]
[377304115,1754326271382,-274.660994,0.00054794,120]
[377304116,1754326271391,-2268.63,0.00054794,120]
[377304117,1754326271401,-3010.86,0.00054794,120]
[377304118,1754326271411,-975.71,0.00054794,120]
[377304119,1754326271421,-400.0,0.00054794,120]
[377304120,1754326271431,-1556.47,0.00054794,120]
[377304121,1754326271441,-2182.0,0.00054794,120]
[377304122,1754326271451,-2620.11,0.00054794,120]
[377304123,1754326271461,-1799.87,0.00054794,120]
[377304124,1754326271470,-6241.7,0.00054794,120]
[377304125,1754326271480,-3122.75,0.00054794,120]
[377304126,1754326271489,-151.0,0.00054794,120]
[377304127,1754326271499,-151.0,0.00054794,120]
[377304128,1754326271511,-151.0,0.00054794,120]
[377304129,1754326271520,-151.0,0.00054794,120]
[377304130,1754326271530,-151.0,0.00054794,120]
[377304131,1754326271541,-1173.63,0.00054794,120]
[377304132,1754326271551,-162.106238,0.00054794,120]
[377304133,1754326271561,-3155.27,0.00054794,120]
[377304134,1754326271571,-1060.44,0.00054794,120]
[377304135,1754326271580,-400.0,0.00054794,120]
[377304136,1754326271590,-8126.41,0.00054794,120]
[377304137,1754326271600,-400.0,0.00054794,120]
[377304138,1754326271611,-400.0,0.00054794,120]
[377304139,1754326271622,-400.0,0.00054794,120]
[377304140,1754326271632,-194.899573,0.00054794,120]
[377304141,1754326271642,-4279.2,0.00054794,120]
[377304142,1754326271652,-3647.9,0.00054794,120]
[377304143,1754326271662,-825.57,0.00054794,120]
[377304144,1754326271671,-1427.58,0.00054794,120]
[377304145,1754326271681,-570.64,0.00054794,120]
[377304146,1754326271690,-358.53029154,0.00054794,120]
[377304147,1754326271700,-2851.24,0.00054794,120]
[377304148,1754326271709,-1592.47,0.00054794,120]
[377304149,1754326271718,-400.0,0.00054794,120]
[377304150,1754326271728,-6908.36,0.00054794,120]
[377304151,1754326271737,-150.0,0.00054794,120]
[377304152,1754326271746,-400.0,0.00054794,120]
[377304153,1754326271756,-4051.61,0.00054794,120]
[377304154,1754326271766,-400.0,0.00054794,120]
[377304155,1754326271775,-646.18,0.00054794,120]
[377304156,1754326271785,-400.0,0.00054794,120]
[377304157,1754326271795,-500.0,0.00054794,120]
[377304158,1754326271805,-914.14,0.00054794,120]
[377304159,1754326271816,-400.0,0.00054794,120]
[377304160,1754326271826,-400.0,0.00054794,120]
[377304161,1754326271838,-24423.37,0.00054794,120]
[377304162,1754326271848,-3135.89,0.00054794,120]
[377304163,1754326271858,-2380.24,0.00054794,120]
[377304164,1754326271867,-150.0,0.00054794,120]
[377304165,1754326271878,-3482.38,0.00054794,120]
[377304166,1754326271887,-2084.86,0.00054794,120]
[377304167,1754326271897,-400.0,0.00054794,120]
[377304168,1754326271907,-5637.27,0.00054794,120]
[377304169,1754326271918,-400.0,0.00054794,120]
[377304170,1754326271930,-400.0,0.00054794,120]
[377304171,1754326271940,-400.0,0.00054794,120]
[377304172,1754326271950,-1804.44,0.00054794,120]
[377304173,1754326271960,-2472.13,0.00054794,120]
[377304174,1754326271970,-400.0,0.00054794,120]
[377304175,1754326271980,-4135.91,0.00054794,120]
[377304176,1754326271989,-5722.55,0.00054794,14]
[377304177,1754326271999,-400.0,0.00054794,75]
[377304178,1754326272009,-400.0,0.00054794,120]
[377304179,1754326272019,-3533.69,0.00054794,120]
[377304180,1754326272029,-2586.7,0.00054794,120]
[377304181,1754326272039,-11453.08,0.00054794,120]
[377304182,1754326272049,-719.53,0.00054794,120]
[377304183,1754326272059,-982.28,0.00054794,120]
[377304184,1754326272068,-400.0,0.00054794,120]
[377304185,1754326272079,-400.0,0.00054794,120]
[377304186,1754326272088,-400.0,0.00054794,120]
[377304187,1754326272098,-400.0,0.00054794,120]
[377304188,1754326272107,-3499.8,0.00054794,120]
[377304189,1754326272121,-7437.19,0.00054794,120]
[377304190,1754326272131,-2644.02,0.00054794,120]
[377304191,1754326272141,-400.0,0.00054794,120]
[377304192,1754326272150,-400.0,0.00054794,120]
[377304193,1754326272161,-461.8921043,0.00054794,120]
[377304194,1754326272171,-400.0,0.00054794,120]
[377304195,1754326272180,-7492.66,0.00054794,120]
[377304196,1754326272190,-1235.45,0.00054794,120]
[377304197,1754326272210,-400.0,0.00054794,120]
[377304198,1754326272221,-400.0,0.00054794,120]
[377304199,1754326272232,-12339.52,0.00054794,120]
[377304200,1754326272242,-6472.844471,0.00054794,120]
[377304201,1754326272252,-878.9,0.00054794,120]
[377304202,1754326272263,-14226.45,0.00054794,120]
[377304203,1754326272273,-400.0,0.00054794,120]
[377304204,1754326272283,-400.0,0.00054794,120]
[377304205,1754326272293,-550.66,0.00054794,120]
[377304206,1754326272303,-400.0,0.00054794,120]